bitfinex-derivatives/quotes_SOLF0:USTF0_20250124
["timestamp","ask_amount","ask_price","bid_price","bid_amount"]
[1737733848442,0.02884358,262.19,262.14,0.02663295]
[1737733848647,14.45723511,262.34,262.13,0.2212]
[1737733848849,14.45723511,262.34,262.14,14.45723511]
[1737733849144,14.45723511,262.39,262.14,14.45723511]
[1737733849548,14.45723511,262.39,262.18,14.45723511]
[1737733849841,3.8108,262.37,262.3,3.8118]
[1737733850243,0.02607314,262.31,262.3,3.8118]
[1737733850651,14.45723511,262.43,262.25,2.6111]
[1737733850848,14.45723511,262.43,262.28,0.02917648]
[1737733851044,3.8107,262.38,262.28,0.02917648]
[1737733851248,14.45723511,262.34,262.28,0.02917648]
[1737733851451,14.45723511,262.3,262.25,1.3208]
[1737733852047,14.45723511,262.35,262.25,1.3208]
[1737733852250,14.45723511,262.39,262.25,1.3208]
[1737733852550,14.45723511,262.39,262.26,1.222]
[1737733852747,0.02724226,262.35,262.33,3.8114]
[1737733855056,0.02724226,262.35,262.29,0.02638157]
[1737733855354,14.45723511,262.34,262.29,0.02638157]
[1737733856053,14.45723511,262.34,262.25,1.3208]
[1737733856449,14.45723511,262.29,262.25,1.3208]
[1737733856952,14.45723511,262.34,262.25,1.3208]
[1737733857153,0.02695464,262.3,262.25,1.3208]
[1737733857355,14.45723511,262.39,262.25,1.3208]
[1737733857954,18.26773511,262.39,262.25,1.3208]
[1737733858154,14.45723511,262.39,262.25,1.3208]
[1737733858349,3.8111,262.35,262.31,3.8116]
[1737733858554,3.83779645,262.35,262.31,3.8116]
[1737733858853,3.83779645,262.35,262.29,0.02910534]
[1737733859154,14.45723511,262.34,262.29,0.02910534]
[1737733859553,3.8116,262.32,262.29,0.02910534]
[1737733859848,14.45723511,262.34,262.29,0.02910534]
[1737733860257,3.8118,262.3,262.29,0.02910534]
[1737733860754,0.02669645,262.35,262.29,0.02910534]
[1737733861055,14.45723511,262.44,262.29,0.02910534]
[1737733861250,3.8102,262.41,262.35,3.811]
[1737733861551,14.45723511,262.44,262.35,3.811]
[1737733862154,0.02877156,262.42,262.37,0.0241781]
[1737733862554,14.45723511,262.49,262.4,3.8103]
[1737733862749,14.45723511,262.49,262.41,1.2341]
[1737733863355,14.45723511,262.44,262.28,1.2634]
[1737733863551,14.45723511,262.39,262.29,1.2341]
[1737733863755,14.48389267,262.39,262.33,0.02575424]
[1737733864257,14.45723511,262.34,262.11,14.45723511]
[1737733864557,14.45723511,262.39,262.16,14.45723511]
[1737733864953,3.8107,262.38,262.22,3.8129]
[1737733865154,14.45723511,262.39,262.23,1.2611]
[1737733865358,0.02699841,262.33,262.27,0.02887078]
[1737733865660,23.57311175,262.43,262.27,0.02887078]
[1737733865850,23.57311175,262.48,262.25,23.57311175]
[1737733866053,3.8096,262.46,262.25,23.57311175]
[1737733866358,23.57311175,262.48,262.25,23.57311175]
[1737733866753,0.0277319,262.39,262.37,3.8107]
[1737733867053,3.48,262.54,262.24,1.2634]
[1737733867054,23.57311175,262.38,262.24,1.2634]
[1737733867258,23.57311175,262.33,262.24,1.2634]
[1737733867559,3.8118,262.3,262.28,0.02732742]
[1737733868258,0.02836747,262.31,262.28,0.02732742]
[1737733869161,0.02836747,262.31,262.14,1.2124]
[1737733869355,23.57311175,262.26,262.14,1.2124]
[1737733869561,23.57311175,262.26,262.14,5.0265]
[1737733869759,23.57311175,262.21,262.09,1.3194]
[1737733870263,23.57311175,262.26,262.09,1.3194]
[1737733870458,0.02458858,262.2,262.14,0.02757297]
[1737733870758,7.71198758,262.33,262.13,23.79431175]
[1737733870961,23.57311175,262.36,262.14,1.273]
[1737733871256,3.48,262.38,262.18,23.57311175]
[1737733871461,7.71198758,262.46,262.23,23.57311175]
[1737733871763,7.71198758,262.46,262.24,1.2521]
[1737733871960,40.21409123,262.5,262.32,0.02555283]
[1737733872261,40.21409123,262.5,262.36,3.8108]
[1737733872459,40.21409123,262.5,262.32,0.02555283]
[1737733872460,40.21409123,262.5,262.37,1.2521]
[1737733872658,23.57311175,262.52,262.37,1.2521]
[1737733873161,3.8092,262.49,262.42,0.02623855]
[1737733873468,23.57311175,262.52,262.42,0.02623855]
[1737733873665,23.57311175,262.52,262.45,3.8096]
[1737733873862,23.57311175,262.52,262.42,0.02623855]
[1737733874061,23.57311175,262.52,262.43,3.8099]
[1737733874262,8.21160626,262.65,262.42,0.02623855]
[1737733874263,23.57311175,262.57,262.42,0.02623855]
[1737733874464,23.57311175,262.57,262.37,1.2521]
[1737733874661,23.57311175,262.57,262.47,0.0271289]
[1737733875965,23.57311175,262.52,262.47,0.0271289]
[1737733876156,23.57311175,262.52,262.44,1.3117]
[1737733876157,27.38181175,262.52,262.44,1.3117]
[1737733876360,27.38181175,262.52,262.47,0.02848028]
[1737733876966,23.57311175,262.52,262.47,0.02848028]
[1737733877163,3.8091,262.49,262.47,0.02848028]
[1737733879471,23.57311175,262.52,262.47,0.02848028]
[1737733880171,23.57311175,262.6,262.5,3.8089]
[1737733880366,3.8077,262.59,262.5,3.8089]
[1737733880573,3.8077,262.59,262.52,0.02489624]
[1737733881373,23.57311175,262.6,262.52,0.02489624]
[1737733882070,23.57311175,262.65,262.52,0.02489624]
[1737733882468,23.57311175,262.65,262.38,26.19531175]
[1737733882673,23.57311175,262.65,262.56,0.02718612]
[1737733882976,23.57311175,262.65,262.58,0.02557597]
[1737733883171,3.8069,262.64,262.55,3.8081]
[1737733883370,3.8069,262.64,262.59,0.02607515]
[1737733883579,23.57311175,262.6,262.38,2.6222]
[1737733883772,23.57311175,262.55,262.38,2.6222]
[1737733884877,0.02859511,262.49,262.44,0.0246795]
[1737733885077,0.02859511,262.49,262.46,3.8095]
[1737733885278,0.02859511,262.49,262.44,0.0246795]
[1737733885679,0.02859511,262.49,262.45,3.8095]
[1737733885880,0.02859511,262.49,262.44,0.0246795]
[1737733886380,0.02859511,262.49,262.47,3.8093]
[1737733886975,0.02859511,262.49,262.44,0.0246795]
[1737733887682,0.02859511,262.49,262.47,3.8093]
[1737733887883,0.02859511,262.49,262.44,0.0246795]
[1737733888284,3.8095,262.46,262.44,0.0246795]
[1737733889178,0.02859511,262.49,262.44,0.0246795]
[1737733889578,23.57311175,262.6,262.44,0.0246795]
[1737733889985,23.57311175,262.6,262.39,1.2787]
[1737733890183,3.8065,262.67,262.42,23.57311175]
[1737733890376,0.1884,262.69,262.59,3.8075]
[1737733890577,23.57311175,262.68,262.59,3.8075]
[1737733890782,23.57311175,262.63,262.42,23.57311175]
[1737733891087,23.57311175,262.63,262.53,3.8084]
[1737733891482,3.8077,262.59,262.39,1.2787]
[1737733891690,3.8077,262.59,262.55,0.02777775]
[1737733891986,3.8079,262.57,262.54,0.02766213]
[1737733892189,23.57311175,262.58,262.48,3.8092]
[1737733892385,23.57311175,262.58,262.53,0.02651437]
[1737733892586,23.57311175,262.63,262.39,1.2787]
[1737733892782,3.8074,262.61,262.55,3.8082]
[1737733893089,23.57311175,262.63,262.53,0.02755959]
[1737733894387,3.8081,262.56,262.53,0.02755959]
[1737733894789,23.57311175,262.58,262.53,0.02755959]
[1737733894987,3.8083,262.55,262.53,0.02755959]
[1737733895588,3.808,262.57,262.53,0.02755959]
[1737733895782,23.57311175,262.58,262.53,0.02755959]
[1737733896788,27.38101175,262.58,262.53,0.02755959]
[1737733897483,23.57311175,262.58,262.53,0.02755959]
[1737733898689,23.57311175,262.63,262.53,0.02755959]
[1737733899190,3.8072,262.62,262.55,3.8081]
[1737733899986,23.57311175,262.63,262.53,3.83595959]
[1737733900490,3.8075,262.6,262.53,3.83595959]
[1737733900892,23.57311175,262.63,262.53,0.02755959]
[1737733901090,3.8077,262.59,262.53,0.02755959]
[1737733901291,23.57311175,262.58,262.53,0.02755959]
[1737733902190,3.8079,262.57,262.53,0.02755959]
[1737733902896,27.38091175,262.58,262.53,0.02755959]
[1737733903395,3.8083,262.54,262.53,0.02755959]
[1737733903995,3.808,262.57,262.53,0.02755959]
[1737733904390,23.57311175,262.58,262.53,0.02755959]
[1737733904595,23.57311175,262.63,262.53,0.02755959]
[1737733904787,23.57311175,262.63,262.39,24.85181175]
[1737733904993,3.8073,262.62,262.55,3.83706478]
[1737733905194,23.57311175,262.63,262.55,3.8081]
[1737733905394,23.57311175,262.63,262.56,0.02409286]
[1737733906198,23.57311175,262.58,262.39,1.2787]
[1737733906497,3.8086,262.53,262.39,1.2787]
[1737733906693,23.57311175,262.58,262.38,1.3169]
[1737733906899,3.8093,262.48,262.43,3.8099]
[1737733907198,23.57311175,262.53,262.38,1.3169]
[1737733907392,0.02544889,262.48,262.43,0.02442464]
[1737733908097,3.8098,262.45,262.43,0.02442464]
[1737733908392,23.57311175,262.44,262.43,0.02442464]
[1737733908698,0.02544889,262.48,262.43,0.02442464]
[1737733908998,0.02544889,262.48,262.46,3.8094]
[1737733913399,0.02544889,262.48,262.43,2.48532464]
[1737733913601,0.02544889,262.48,262.47,3.8094]
[1737733914305,4.889e-05,262.48,262.47,3.8094]
[1737733915701,4.889e-05,262.48,262.43,3.83422464]
[1737733916004,4.889e-05,262.48,262.43,0.02442464]
[1737733916404,4.889e-05,262.48,262.47,3.8094]
[1737733919612,7.74355059,262.71,262.46,7.6189]
[1737733919803,7.74355059,262.72,262.5,14.49646613]
[1737733920109,11.54945059,262.72,262.65,3.8067]
[1737733920308,7.6052,262.94,262.65,3.8067]
[1737733920309,124.37042895,262.86,262.71,14.49646613]
[1737733920502,124.37042895,262.86,262.66,3.8447]
[1737733920503,90.40618278,262.84,262.76,14.49646613]
[1737733920700,84.20068278,262.84,262.83,3.8041]
[1737733920904,71.67858278,262.84,262.83,3.8041]
[1737733921101,65.56488278,262.84,262.83,3.8041]
[1737733921399,40.82824711,262.88,262.83,20.0]
[1737733921605,40.82824711,262.88,262.87,14.49646613]
[1737733921805,40.82824711,262.88,262.87,18.30006613]
[1737733922205,40.82824711,262.88,262.87,14.49646613]
[1737733922512,11.44,263.15,262.87,37.66046183]
[1737733922807,14.9,263.26,262.87,37.66046183]
[1737733923003,25.91646613,263.25,262.97,0.02764636]
[1737733923310,14.49646613,263.07,262.97,0.02764636]
[1737733923604,3.8009,263.06,262.87,23.1639957]
[1737733923909,23.46348392,263.08,262.88,23.1639957]
[1737733924305,3.8014,263.02,262.88,23.1639957]
[1737733924500,23.46348392,263.03,262.88,23.1639957]
[1737733924900,0.024083,262.98,262.93,0.02615384]
[1737733925109,0.024083,262.98,262.88,23.1639957]
[1737733925509,23.46348392,263.04,262.91,158.0778313]
[1737733925910,3.48,263.08,262.91,158.0778313]
[1737733926104,3.8018,263.0,262.91,158.0778313]
[1737733926300,23.46348392,263.04,262.91,158.0778313]
[1737733926711,0.02516105,263.0,262.95,0.0277738]
[1737733926901,0.02516105,263.0,262.91,158.0778313]
[1737733928006,0.02516105,263.0,262.93,0.02799763]
[1737733929108,0.02516105,263.0,262.93,23.49148155]
[1737733929710,6.105e-05,263.0,262.98,27.26538392]
[1737733929908,0.4598,263.12,262.98,23.46348392]
[1737733930815,0.4598,263.12,263.03,3.8012]
[1737733931016,0.02400485,263.08,263.02,0.02600934]
[1737733931311,0.02400485,263.08,263.06,3.8008]
[1737733931710,0.02400485,263.08,263.02,0.02600934]
[1737733933110,3.82460485,263.08,263.02,0.02600934]
[1737733933315,0.02400485,263.08,263.02,0.02600934]
[1737733933815,3.8009,263.06,262.91,158.0778313]
[1737733934209,3.8009,263.06,262.95,3.8023]
[1737733934515,1.234,263.07,262.95,3.8023]
[1737733934716,1.234,263.07,262.91,158.0778313]
[1737733934915,0.02737425,263.04,262.98,0.02673631]
[1737733935815,3.82847425,263.04,262.98,0.02673631]
[1737733936214,0.02737425,263.04,262.98,0.02673631]
[1737733936514,3.8013,263.03,262.98,0.02673631]
[1737733937317,0.02737425,263.04,262.98,0.02673631]
[1737733938513,0.02737425,263.04,262.99,3.8018]
[1737733938708,0.02737425,263.04,262.98,0.02673631]
[1737733939115,3.8014,263.02,262.98,0.02673631]
[1737733939317,0.02737425,263.04,262.98,0.02673631]
[1737733939718,1.22894341,263.07,262.98,0.02673631]
[1737733939917,1.22894341,263.07,263.01,3.8015]
[1737733940117,3.8006,263.08,262.98,0.02673631]
[1737733940318,23.46348392,263.17,262.98,0.02673631]
[1737733940519,23.46348392,263.17,262.96,23.46348392]
[1737733940916,0.02431745,263.09,263.03,0.02824093]
[1737733941723,3.8011,263.05,263.03,0.02824093]
[1737733941922,0.02431745,263.09,262.91,23.46348392]
[1737733942224,3.8015,263.02,262.97,3.8021]
[1737733942624,23.46348392,263.12,262.91,23.46348392]
[1737733943324,0.02722601,263.04,262.99,0.0285291]
[1737733943525,0.02722601,263.04,263.0,3.8016]
[1737733943817,0.02722601,263.04,262.99,0.0285291]
[1737733944623,1.2352,263.16,262.99,0.0285291]
[1737733944821,1.3327,263.15,263.03,3.8012]
[1737733945028,1.3327,263.15,262.91,23.46348392]
[1737733945827,0.02748747,263.06,263.0,0.02606818]
[1737733946023,0.02748747,263.06,263.05,3.801]
[1737733946222,3.8004,263.09,263.05,3.801]
[1737733946422,0.0250511,263.08,263.05,3.801]
[1737733947025,0.0250511,263.08,263.0,0.02606818]
[1737733948227,3.8256511,263.08,263.03,3.8011]
[1737733948421,3.8256511,263.08,263.0,0.02606818]
[1737733949026,3.8256511,263.08,263.02,3.8013]
[1737733949229,0.0250511,263.08,263.0,0.02606818]
[1737733949630,0.0250511,263.08,263.03,3.8011]
[1737733949927,0.0250511,263.08,263.0,0.02606818]
[1737733950122,0.0250511,263.08,263.03,3.8011]
[1737733950326,0.0250511,263.08,263.0,0.02606818]
[1737733950630,0.00071706,263.08,263.0,0.02606818]
[1737733950926,3.80121706,263.08,263.05,3.8009]
[1737733951128,0.00071706,263.08,263.05,3.8009]
[1737733951426,1.323,263.14,263.0,0.02606818]
[1737733951626,3.8003,263.1,263.06,3.8008]
[1737733952927,1.323,263.14,263.05,0.02746193]
[1737733953529,3.8002,263.1,263.06,3.8007]
[1737733954028,1.323,263.14,263.06,3.8007]
[1737733954430,3.8001,263.12,263.06,3.8007]
[1737733955422,3.8002,263.11,263.06,3.8007]
[1737733955627,1.323,263.14,263.06,3.8007]
[1737733956231,3.8002,263.11,263.06,3.8007]
[1737733956427,1.323,263.14,263.05,0.02746193]
[1737733956631,15.76272873,263.15,263.05,0.02746193]
[1737733957227,14.43002873,263.2,263.05,0.02746193]
[1737733957433,1.3291,263.22,263.02,14.43002873]
[1737733957627,1.3291,263.22,263.1,0.02780094]
[1737733958229,14.43002873,263.25,263.1,0.02780094]
[1737733958536,14.43002873,263.47,263.22,14.43002873]
[1737733958731,14.43002873,263.42,263.17,14.43002873]
[1737733958935,14.43002873,263.37,263.13,1.3221]
[1737733959433,14.43002873,263.42,263.22,14.43002873]
[1737733959735,3.7962,263.38,263.26,3.7978]
[1737733960135,0.02493764,263.35,263.29,0.02578354]
[1737733961730,0.02493764,263.35,263.32,14.43002873]
[1737733961935,0.02493764,263.35,263.33,3.7968]
[1737733962135,3.46,263.56,263.32,14.43002873]
[1737733963037,3.7947,263.49,263.33,3.7968]
[1737733963239,14.43002873,263.57,263.41,0.02820087]
[1737733963539,3.794,263.54,263.38,3.7961]
[1737733963736,1.2312,263.56,263.46,0.02749659]
[1737733964041,1.2312,263.56,263.37,14.43002873]
[1737733964237,1.2312,263.56,263.48,0.02827149]
[1737733964741,3.7939,263.55,263.48,0.02827149]
[1737733965548,3.7939,263.54,263.48,0.02827149]
[1737733965841,1.3187,263.59,263.48,0.02827149]
[1737733966141,1.292,263.55,263.48,0.02827149]
[1737733966340,3.7944,263.51,263.48,0.02827149]
[1737733966541,14.43002873,263.52,263.32,14.43002873]
[1737733966741,14.43002873,263.52,263.28,3.7387]
[1737733967137,14.43002873,263.52,263.27,14.43002873]
[1737733967138,14.43002873,263.47,263.27,14.43002873]
[1737733967443,1.2935,263.46,263.27,14.43002873]
[1737733967643,3.7961,263.39,263.23,3.7983]
[1737733967844,0.02473547,263.39,263.34,0.02550696]
[1737733968044,1.2935,263.46,263.22,14.43002873]
[1737733968245,3.7966,263.35,263.34,0.02754816]
[1737733968446,0.02470664,263.39,263.22,18.22842873]
[1737733968744,3.7977,263.28,263.17,18.22922873]
[1737733968938,14.43002873,263.37,263.17,14.43002873]
[1737733969140,1.2121,263.36,263.15,5.88801924]
[1737733969643,0.02874748,263.28,263.23,0.02604882]
[1737733973850,3.7979,263.27,263.23,0.02604882]
[1737733974051,0.02874748,263.28,263.23,0.02604882]
[1737733975048,3.7981,263.25,263.23,0.02604882]
[1737733976252,0.02874748,263.28,263.16,3.7993]
[1737733976454,3.7982,263.24,263.16,3.7993]
[1737733976953,3.7978,263.28,263.12,14.66874873]
[1737733977152,1.2297,263.31,263.12,14.66874873]
[1737733977653,0.02677491,263.24,263.19,0.0279638]
[1737733978054,3.7988,263.21,263.19,0.0279638]
[1737733978551,15.67122873,263.23,263.12,0.23872]
[1737733978757,1.336,263.2,263.12,0.23872]
[1737733979558,0.02794349,263.19,263.13,0.02810356]
[1737733980248,0.02794349,263.19,263.17,3.7992]
[1737733981756,0.02794349,263.19,263.15,3.7995]
[1737733981962,3.82694349,263.19,263.13,0.02810356]
[1737733982156,0.02794349,263.19,263.13,0.02810356]
[1737733982556,0.02794349,263.19,263.16,3.7993]
[1737733982756,0.02794349,263.19,263.13,0.02810356]
[1737733983761,0.02794349,263.19,263.18,3.7991]
[1737733984463,0.02794349,263.19,263.13,0.02810356]
[1737733985657,3.7996,263.15,263.13,0.02810356]
[1737733986059,1.3367,263.18,263.13,0.02810356]
[1737733986259,3.7995,263.15,263.13,0.02810356]
[1737733986457,3.7995,263.15,263.12,0.23872]
[1737733986662,1.2753,263.17,263.12,0.23872]
[1737733987062,3.7994,263.16,263.12,0.23872]
[1737733988559,3.7998,263.13,263.11,0.02626445]
[1737733988756,1.2753,263.17,262.94,14.43002873]
[1737733989262,3.7998,263.14,262.94,14.43002873]
[1737733989555,1.2753,263.17,262.94,14.43002873]
[1737733989964,0.02767517,263.08,263.03,0.02518996]
[1737733990663,0.02767517,263.08,263.07,3.8007]
[1737733991557,3.7985,263.23,263.17,3.7992]
[1737733991758,17.89002873,263.3,263.05,14.43002873]
[1737733992067,3.7988,263.2,263.13,3.7997]
[1737733992367,14.43002873,263.25,263.04,2.5735]
[1737733992760,0.02536917,263.17,263.12,0.02592302]
[1737733993159,0.02536917,263.17,263.16,3.7994]
[1737733993362,0.02536917,263.17,263.12,0.02592302]
[1737733993765,0.02536917,263.17,263.14,3.7995]
[1737733993972,0.02536917,263.17,263.12,0.02592302]
[1737733997374,0.02536917,263.17,263.14,3.7997]
[1737733998079,3.7995,263.16,263.12,3.82582302]
[1737733998272,0.02536917,263.17,263.12,0.02592302]
[1737733998467,3.8007,263.07,263.02,3.8014]
[1737733998672,14.43002873,263.15,262.9,1.2525]
[1737733999567,14.43002873,263.15,263.03,3.8012]
[1737733999568,0.02394987,263.05,263.03,3.8012]
[1737733999774,3.8004,263.09,263.03,3.8012]
[1737733999975,0.02515636,263.07,263.03,3.8012]
[1737734000172,0.02515636,263.07,263.01,0.02849614]
[1737734000373,3.82585636,263.07,263.01,0.02849614]
[1737734001071,0.02515636,263.07,263.01,0.02849614]
[1737734001376,0.02515636,263.07,262.74,161.5378313]
[1737734001572,14.43002873,263.1,262.87,1.2998]
[1737734002479,0.02847741,263.01,262.96,0.02410106]
[1737734002777,0.02847741,263.01,262.99,3.8017]
[1737734002976,0.02847741,263.01,262.96,0.02410106]
[1737734003472,0.02847741,263.01,262.99,3.8018]
[1737734003681,0.02847741,263.01,262.96,0.02410106]
[1737734005475,3.802,262.98,262.96,0.02410106]
[1737734005671,15.70872873,263.0,262.8,1.2415]
[1737734005975,16.93662873,263.0,262.8,1.2415]
[1737734006375,14.43002873,262.89,262.65,18.64334167]
[1737734006885,0.02819619,262.8,262.74,0.02519901]
[1737734007774,0.02819619,262.8,262.78,3.8048]
[1737734009075,14.43002873,262.95,262.74,0.02519901]
[1737734009282,14.43002873,262.95,262.87,3.8034]
[1737734009483,5.0782,262.98,262.76,14.43002873]
[1737734009675,1.2761,262.98,262.92,3.8028]
[1737734010178,2.5066,263.0,262.96,3.8022]
[1737734010382,0.02689335,262.98,262.96,3.8022]
[1737734010577,0.02689335,262.98,262.92,0.02436455]
[1737734011479,3.82899335,262.98,262.92,0.02436455]
[1737734011679,0.02689335,262.98,262.92,0.02436455]
[1737734012387,3.82889335,262.98,262.92,0.02436455]
[1737734012587,0.02689335,262.98,262.92,0.02436455]
[1737734013287,3.8023,262.96,262.92,0.02436455]
[1737734013686,3.8038,262.86,262.67,14.43002873]
[1737734013886,14.43002873,262.89,262.66,1.2677]
[1737734014089,2.5318,262.88,262.66,1.2677]
[1737734014684,3.8045,262.81,262.73,3.8056]
[1737734014889,0.02397429,262.8,262.74,0.02476017]
[1737734015893,14.43002873,262.77,262.55,158.0778313]
[1737734016993,0.02474391,262.69,262.63,0.02757443]
[1737734017591,0.02474391,262.69,262.64,3.8068]
[1737734018694,0.02474391,262.69,262.63,0.02757443]
[1737734019399,4.391e-05,262.69,262.63,0.02757443]
[1737734019894,4.391e-05,262.69,262.67,3.8063]
[1737734020194,4.391e-05,262.69,262.63,0.02757443]
[1737734020594,4.391e-05,262.69,262.67,3.8064]
[1737734022896,4.391e-05,262.69,262.65,3.8066]
[1737734023698,4.391e-05,262.69,262.63,3.83447443]
[1737734023895,4.391e-05,262.69,262.63,0.02757443]
[1737734024289,3.8064,262.68,262.63,0.02757443]
[1737734024491,4.391e-05,262.69,262.63,0.02757443]
[1737734025193,4.391e-05,262.69,262.68,3.8063]
[1737734026299,4.391e-05,262.69,262.68,18.23632873]
[1737734026699,14.43002873,262.92,262.84,3.804]
[1737734027196,1.2618,262.94,262.73,14.43002873]
[1737734027702,14.43002873,262.88,262.69,1.2589]
[1737734028005,3.8042,262.83,262.81,0.02459539]
[1737734028203,14.43002873,262.88,262.65,15.69042873]
[1737734028503,3.8039,262.85,262.65,15.69042873]
[1737734028901,18.23352873,262.88,262.8,3.8045]
[1737734029306,0.02578752,262.87,262.81,0.02922377]
[1737734029504,14.43002873,262.88,262.65,15.69042873]
[1737734029707,3.82889708,262.87,262.81,0.02877004]
[1737734029903,14.43002873,262.88,262.65,15.69042873]
[1737734030103,3.8042,262.83,262.81,0.02884243]
[1737734030399,14.43002873,262.88,262.65,1.2604]
[1737734030597,14.43002873,262.88,262.65,15.69042873]
[1737734030797,3.8036,262.87,262.65,15.69042873]
[1737734030996,14.43002873,262.88,262.65,15.69042873]
[1737734031396,0.02678951,262.79,262.74,0.02818215]
[1737734032905,0.02678951,262.79,262.77,3.8049]
[1737734033305,8.951e-05,262.79,262.77,3.8049]
[1737734035509,8.951e-05,262.79,262.78,2.57]
[1737734035705,2.6677,262.98,262.84,3.804]
[1737734036011,14.43002873,263.04,262.82,14.43002873]
[1737734036510,3.801,263.05,262.98,3.8019]
[1737734036808,1.3032,263.07,262.82,14.43002873]
[1737734037111,3.8016,263.01,262.94,3.8025]
[1737734037410,0.02742933,262.97,262.92,0.0249894]
[1737734038008,0.02742933,262.97,262.72,14.43002873]
[1737734038209,3.8031,262.91,262.83,3.8041]
[1737734038405,14.43002873,262.88,262.65,3.8115]
[1737734039304,0.02452783,262.79,262.74,0.02467802]
[1737734039906,0.02452783,262.79,262.74,3.83007802]
[1737734040514,0.02452783,262.79,262.74,0.02467802]
[1737734041817,0.02452783,262.79,262.77,3.805]
[1737734043609,2.783e-05,262.79,262.77,3.805]
[1737734049014,2.783e-05,262.79,262.78,3.8049]
[1737734049410,2.783e-05,262.79,262.74,0.02467802]
[1737734050116,2.783e-05,262.79,262.77,3.805]
[1737734051017,2.783e-05,262.79,262.78,3.8049]
[1737734051520,2.783e-05,262.79,262.51,7.6174]
[1737734051716,14.43002873,262.75,262.56,1.2109]
[1737734051918,14.43002873,262.86,262.64,3.8068]
[1737734051919,3.8051,262.77,262.64,3.8068]
[1737734052117,3.8051,262.77,262.56,1.2109]
[1737734052416,14.43002873,262.86,262.56,1.2109]
[1737734052611,3.8053,262.76,262.69,3.8061]
[1737734052813,0.02926168,262.74,262.37,158.0778313]
[1737734053019,3.8073,262.62,262.54,3.8082]
[1737734053219,0.02799155,262.64,262.59,0.02486265]
[1737734053514,14.43002873,262.69,262.43,3.7098]
[1737734053718,0.02453761,262.64,262.59,0.02925983]
[1737734054311,14.45456634,262.64,262.43,1.2109]
[1737734054717,14.43002873,262.64,262.43,1.2109]
[1737734054915,3.8082,262.56,262.45,3.8096]
[1737734055117,14.43002873,262.59,262.43,1.2109]
[1737734055523,0.02842936,262.54,262.48,0.0244195]
[1737734057626,0.02842936,262.54,262.52,3.8086]
[1737734057828,0.02842936,262.54,262.48,0.0244195]
[1737734058125,0.02842936,262.54,262.51,3.8087]
[1737734058323,0.02842936,262.54,262.48,0.0244195]
[1737734059328,0.02842936,262.54,262.52,3.8085]
[1737734060728,2.936e-05,262.54,262.52,3.8085]
[1737734062623,1.3072,262.71,262.5,14.43002873]
[1737734062828,1.286,262.77,262.55,14.43002873]
[1737734063029,1.286,262.77,262.56,1.3169]
[1737734063730,1.3395,262.78,262.6,14.43002873]
[1737734063931,1.3395,262.78,262.64,0.02862722]
[1737734065129,0.02896391,262.74,262.64,0.02862722]
[1737734065935,6.391e-05,262.74,262.73,3.8056]
[1737734069632,6.391e-05,262.74,262.71,3.83498938]
[1737734070032,6.391e-05,262.74,262.72,3.8057]
[1737734070532,3.8056,262.73,262.71,0.02918938]
[1737734071029,6.391e-05,262.74,262.71,0.02918938]
[1737734073039,3.8056,262.73,262.71,0.02918938]
[1737734073240,6.391e-05,262.74,262.71,0.02918938]
[1737734073838,6.391e-05,262.74,262.56,3.8193]
[1737734074140,14.43002873,262.71,262.56,1.3169]
[1737734074341,2.5623,262.7,262.48,2.5602]
[1737734074540,2.5623,262.7,262.48,3.8319]
[1737734074839,3.8067,262.66,262.59,3.8075]
[1737734075043,0.02715581,262.63,262.57,0.02855106]
[1737734075343,0.02715581,262.63,262.42,14.43002873]
[1737734075535,14.43002873,262.66,262.43,1.3196]
[1737734075739,3.8075,262.6,262.43,1.3196]
[1737734076335,14.43002873,262.66,262.43,1.3196]
[1737734076541,0.02667719,262.54,262.49,0.02427425]
[1737734076742,14.43002873,262.61,262.43,1.3196]
[1737734076942,0.02803945,262.54,262.49,0.02630416]
[1737734077145,0.02803945,262.54,262.49,3.83530416]
[1737734077341,0.02803945,262.54,262.49,0.02630416]
[1737734079147,0.02803945,262.54,262.51,3.8087]
[1737734079347,0.02803945,262.54,262.49,0.02630416]
[1737734079746,0.02803945,262.54,262.52,3.8086]
[1737734079950,1.3321,262.69,262.49,0.02630416]
[1737734080249,1.3321,262.69,262.44,14.43002873]
[1737734080651,1.3321,262.69,262.55,3.8082]
[1737734080842,1.3321,262.69,262.49,14.43002873]
[1737734081042,0.02759237,262.65,262.59,0.02469942]
[1737734084550,0.02759237,262.65,262.63,3.807]
[1737734084954,9.237e-05,262.65,262.63,3.807]
[1737734086954,9.237e-05,262.65,262.64,3.8069]
[1737734091054,9.237e-05,262.65,262.64,3.56747]